Workbook

Sheet Getting Started
F3: Getting Started
F4: CHP Screening Tool
F5: Last Updated May 2019
C7: Purpose and Overview
C8: The CHP Screening Tool provides estimates of two key indicators for determining the preliminary financial performance of a CHP system, payback period and spark spread, based on a small number of readily-available user inputs. In addition, the tool includes estimates of CHP equipment and installation costs and energy cost savings. If the analysis determines that either the facility’s average consumption of electricity or thermal energy is less than the output of a commercially available CHP system, the tool will return the result, “No CHP.” Please note that information investigating the technical feasibility of a proposed CHP system is available on the CHP Partnership website.
C10: User Manual
C11: - Please refer to the User Manual (available in the upper right corner of each worksheet) for information about each worksheet and the methodology used by the tool.
C12: Steps to Follow
C13: 1. To get started, the user will need the following information: - The location and line of business of the facility that the CHP system would serve, and the number of annual operating hours of the facility.. - Energy and electricity consumption and price information for the facility. Please consult the User Manual for details. - Information about any available incentives, such as per-kW capital and per-kWh performance incentive. -Information on the efficiency of the equipment the CHP system would displace, and the expected service life, in years of the new CHP system. 2. The user begins by completing 13 inputs on the “Inputs” worksheet. All 13 inputs must be completed. The tool requires that the user supply specific values for Inputs 1, 2, 3, 9, 10, and 11. For the other inputs, users have the option of supplying values or choosing to have the tool supply default values. For best results, users are encouraged to supply project-specific information for as many inputs as possible. 3. After completing inputs 1 through 13, press the “Calculate and Go To Results” button at the bottom of the worksheet. 4. The tool will display the “Results” worksheet, which presents information about the facility, the CHP systems, and the analysis results.
C14: Help Us Improve the CHP Screening Tool
C15: We welcome your input on the CHP Screening Tool's usability and functionality as we strive to improve it. We would also like to know if you encounter any issues when using the tool. Please send us comments or questions via phone or e-mail at: 703-373-8108 or chp@epa.gov.

Sheet Inputs
C3: Inputs
C4: CHP Screening Tool
B6: 1. What state is the facility located in? | F6: Instructions
F7: Use the drop-down list to select the appropriate state.
B11: 2. What is the line of business of the facility?
F12: Use the drop-down list to select the appropriate line of business (note that categories are based on two- or four-digit SIC codes). If your facility's line of business is not listed, select a similar line of business.
B16: 3. What is the average monthly electric use in kWh?
F17: Enter the kWh used during a typical month or divide the annual kWh consumption by 12.
B21: 4. What is the average monthly heating load or fuel use of the facility (enter a value in only ONE of the boxes)? | F21: Enter the monthly heating load in MMBtu, the monthly fuel use in MMBtu, or use the default button to enter an estimated monthly heating load based on the line of business supplied in Input 2. 1 Therm is equivalent to 0.1 MMBtu (1 MMBtu = 10 Therms) 1 MCF is equivalent to 1.03 MMBtu (1 MMBtu = 0.97 MCF) Note: Although CHP systems can provide cooling, the tool considers heating loads only.
B22: Monthly heating load in MMBtu
B23: Monthly Fuel Use in MMBtu
D25: 0
B27: 5. How many hours per year does the facility operate? | F27: Enter the annual operating hours of the facility or choose from one of the hourly operating schedules in the drop-down list. If the annual operating hours of the facility are not known, use the default button that will estimate the operating hours based on the line of business selected in Input 2.
D30: 0
D32: 2 | F32: The federal Business Investment Tax Credit (ITC) was recently amended in February 2018 to reinstate CHP technologies. The rebate amount for CHP is 10%, which is applied to the total capital cost of the CHP system. Information about the federal ITC is available in dCHPP (CHP Policies and Incentives Database).
B33: 6. Would the facility be eligible for the federal Business Investment Tax Credit (ITC)?
D36: 0
F38: Capital incentives are offered to assist customers with the upfront costs of installing a CHP system. Information about CHP incentives is available in dCHPP (CHP Policies and Incentives Database).
B39: 7. Would the facility be eligible for a capital incentive ($/kW)? If yes, please enter a value.
D43: 0
F45: Note that performance incentives are typically between $0.001/kWh and $0.10/kWh, and the payout periods do not typically exceed 5 years. Information about CHP incentives is available in dCHPP (CHP Policies and Incentives Database).
B46: 8a. Would the facility be eligible for a performance ($/kWh) incentive? If yes, please enter a value.
B47: 8b. If the facility is eligible for a performance incentive ($/kWh), what is the length of this incentive in years?
F52: Enter the cost of fuel for on-site thermal equipment, in dollars per MMBtu. For a monthly gas bill, divide the total bill ($) by the monthly MMBtu (0.1 * Therms). 1 Therm is equivalent to 0.1 MMBtu (1 MMBtu = 10 Therms) 1 MCF is equivalent to 1.03 MMBtu (1 MMBtu = 0.97 MCF)
B53: 9. What is the price of fuel for on-site thermal equipment, in $/MMBtu?
F58: In many cases the CHP fuel price will be the same as the fuel price entered in Input 9. However, in certain locations, fuel for CHP systems is provided at a special price. If the utility offers a special CHP fuel price, enter it here, otherwise enter the same fuel price used in Input 9.
B59: 10. What is the CHP fuel price, in $/MMBtu?
F64: Enter the all-in price of electricity in $/kWh (for a monthly electric bill, divide the total bill ($) by the monthly kWh).
B65: 11. What is the facility's electricity price, in $/kWh?
F70: Input the efficiency of the equipment that CHP output would displace. This can be boilers producing steam or hot water, for example. The efficiency of thermal equipment is typically between 75 and 85 percent. If this value is not known, select the default button to use the default value of 80 percent.
B71: 12. What is the efficiency of thermal equipment that CHP output would displace? (typically 75 - 85%)
B76: 13. What is the CHP equipment service life? | F76: Select the expected service life of the CHP equipment, between 1 and 50 years. The default value is the typical service life for the CHP system size defined by the tool.
D78: 15
D81: 15

Sheet Results - LowSys (hidden)
D3: Results
D4: CHP Screening Tool
B6: See the User Manual for discussion about the source of the information presented on this worksheet.
B7: Facility Energy Use
C8: This information is calculated based on values entered on the Inputs worksheet and is used to define the CHP system for analysis.
C10: Facility Average Electric Load, kW | E10: =IF(OpHours=0,0,ElecUse/OpHours*12) -> 0
C11: Facility Average Heating Load, MMBtu/hour | E11: =IF(OpHours=0,0,IF(ThermalUse=0,FuelUse*0.8/OpHours*12,ThermalUse/OpHours*12)) -> 0
B13: CHP Performance Information
C14: This information has been defined by the tool based on values entered on the Inputs worksheet.
C16: Electric Load that could be Supported by CHP (kW) | E16: =IFERROR(Defaults!C18,"No CHP") -> 0
C17: CHP System Type | E17: =IFERROR(CHPSysTypeDef,"No CHP") -> No CHP
C18: Total CHP Efficiency (HHV) | E18: =IFERROR(TotEffDef,"No CHP") -> 0.7496336996
B20: Estimated CHP Cost to Generate Electricity
C21: CHP cost to generate electricity is the cost for the facility to generate electricity with CHP. It accounts for variable costs to operate and maintain the CHP system, the fixed cost associated with the purchase of the CHP system, and any available performance incentives the facility receives for electricity generated with the CHP system.
C23: Operating Cost to Generate | F23: $/kWh
C24: CHP Fuel | F24: =IFERROR(IF(CHPSysTypeDef="No CHP","No CHP",F69*CHPFuelPrice/F62),"-") -> No CHP
C25: Operation and Maintenance | F25: =IFERROR(OandMCostsDef,"-") -> 0.06
C26: Thermal Energy Credit | F26: =IFERROR(IF(CHPSysTypeDef="No CHP","No CHP",-(E70-F70)*BoilerFuelPrice/F62),"-") -> No CHP
C27: Operating Costs to Generate Electricity | F27: =IFERROR(IF(CHPSysTypeDef="No CHP","No CHP",SUM(F24:F26)),"-") -> No CHP
C28: Capital Charge | F28: =IFERROR(IF(CHPSysTypeDef="No CHP","No CHP",PMT(CostCapitalDefault,EconLifeDef,-TotalCapCostDef+CapIncentive)/OpHours/CHPAvailabilityDef),"-") -> No CHP
C29: Total Costs to Generate Electricity | F29: =IFERROR(IF(CHPSysTypeDef="No CHP","No CHP",F27+F28),"-") -> No CHP
C30: Performance Incentive | F30: =IFERROR(-Lifetime_PerfInc,"-") -> -
C31: Net Total Cost to Generate Electricity After Perf. Incentive | F31: =IFERROR(IF(CHPSysTypeDef="No CHP","No CHP",F29+F30),"-") -> No CHP
B33: CHP Spark Spread
C34: "CHP spark spread" is the difference between the all-in electric rate paid by the facility before CHP, and the effective electric rate paid with CHP. The effective electric rate paid by the facility with CHP is a blend of the net total cost to generate electricity after performance incentive and the all-in electric rate paid to the utility for any electricity needed beyond what the CHP system produces. The greater the "CHP spark spread," the higher the potential return on investment.
C36: All-in Electric Rate Before CHP, $/kWh | E36: =AvgElecPrice -> 0
C37: Effective Electric Rate with CHP, $/kWh | E37: =IF(CHPSysTypeDef="No CHP","No CHP",((F31*F62)+((F78/F61)*(F61)))/F63) -> No CHP
C38: CHP Spark Spread, $/kWh | E38: =E36-E37 -> 
B40: ="Payback Period" -> Payback Period
C41: Payback period is the period of time required to recoup the capital cost of the CHP system, or to reach a break even point. The payback period is calculated based on the net costs and savings after incentives. Information about how the payback period is calculated is available in the User Manual.
C43: Payback Period Range (Years) | E43: =Payback -> No Savings
B45: CHP Capital Cost and Incentives
C46: This information has been defined by the tool based on values entered on the Inputs worksheet. Costs are given as ranges based on selected CHP systems sized lower and higher than the facility electric load that could be supported by CHP.
E48: Rate ($/kW) | F48: Total $
C49: Equipment Cost | E49: =IFERROR(EquipCostDef,"No CHP") -> 4000 | F49: =IFERROR(EquipCostDef*CHPSize,"No CHP") -> 0
C50: Installation Cost | E50: =IFERROR(InstCostDef,"No CHP") -> 8000 | F50: =IFERROR(InstCostDef*CHPSize,"No CHP") -> 0
C51: Total Capital Cost | E51: =IFERROR(TotalCapCostDef,"No CHP") -> 12000 | F51: =IFERROR(TotalCapCostDef*CHPSize,"No CHP") -> 0
C52: Federal ITC | E52: =IF(AND(E49="No CHP",E50="No CHP",E51="No CHP"),"No CHP",ITCIncentive) -> FALSE | F52: =IFERROR(ITCIncentive*CHPSize,"No CHP") -> 0
C53: Capital Incentive | E53: =IF(AND(E49="No CHP",E50="No CHP",E51="No CHP"),"No CHP",CapIncentive) -> 0 | F53: =IFERROR(CapIncentive*CHPSize,"No CHP") -> 0
C54: Net Capital Cost After Incentives | E54: =IFERROR(TotalCapCostDef-CapIncentive-(ITCIncentive/CHPSize),"No CHP") -> No CHP | F54: =IFERROR((TotalCapCostDef-CapIncentive-ITCIncentive)*CHPSize,"No CHP") -> 0
B56: Estimated Change in Annual Energy and Fuel Use
C57: Based on facility energy use values enetered on the Inputs worksheet and CHP operational characteristics.
E59: No CHP | F59: With CHP | G59: Increase/Decrease
C60: Annual Electricity Use, kWh
C61: Purchased Electricity | E61: =ElecUse*12 -> 0 | F61: =IF(CHPSysTypeDef="No CHP","No CHP",IF(E61-F62<0,0,E61-F62)) -> No CHP | G61: =IF(CHPSysTypeDef="No CHP","No CHP",F61-E61) -> No CHP
C62: CHP Electricity Generation | E62: 0 | F62: =IF(CHPSysTypeDef="No CHP","No CHP",CHPSize*CHPAvailabilityDef*OpHours) -> No CHP | G62: =IF(CHPSysTypeDef="No CHP","No CHP",F62) -> No CHP
C63: Total Annual Electricity Use, kWh | E63: =SUM(E61:E62) -> 0 | F63: =SUM(F61:F62) -> 0 | G63: =IF(CHPSysTypeDef="No CHP","No CHP",F63-E63) -> No CHP
C64: Annual Thermal Energy Use, MMBtu/yr
C65: CHP | E65: 0 | F65: =IF(CHPSysTypeDef="No CHP","No CHP",IF(CHPThermOutputDef*CHPThermUtilDefault*F62/1000000>E66,E66*CHPAvailabilityDef,MIN(E66*CHPAvailabilityDef,CHPThermOutputDef*CHPThermUtilDefault*F62/1000000))) -> No CHP | G65: =IF(CHPSysTypeDef="No CHP","No CHP",E65-F65) -> No CHP
C66: Non-CHP Thermal Equipment | E66: =BaseThermalUse*OpHours -> 0 | F66: =IF(CHPSysTypeDef="No CHP","No CHP",IF(F65>E66,0,E66-F65)) -> No CHP | G66: =IF(CHPSysTypeDef="No CHP","No CHP",E66-F66) -> No CHP
C67: Total Thermal Energy Use, MMBtu/yr | E67: =E66 -> 0 | F67: =IF(CHPSysTypeDef="No CHP","No CHP",F66+F65) -> No CHP | G67: =IF(CHPSysTypeDef="No CHP","No CHP",F67-E67) -> No CHP
C68: Annual Fuel Use, MMBtu/yr
C69: CHP | E69: 0 | F69: =IF(CHPSysTypeDef="No CHP","No CHP",F62*CHPHeatRateDef/1000000) -> No CHP | G69: =IF(CHPSysTypeDef="No CHP","No CHP",F69-E69) -> No CHP
C70: Non-CHP Thermal Equipment | E70: =IFERROR(E66/SiteBoilerEff,0) -> 0 | F70: =IF(CHPSysTypeDef="No CHP","No CHP",F66/SiteBoilerEff) -> No CHP | G70: =IF(CHPSysTypeDef="No CHP","No CHP",F70-E70) -> No CHP
C71: Annual Total Fuel Use, MMBtu/yr | E71: =E70 -> 0 | F71: =IF(CHPSysTypeDef="No CHP","No CHP",F70+F69) -> No CHP | G71: =IF(CHPSysTypeDef="No CHP","No CHP",F71-E71) -> No CHP
B73: Estimated Annual Operating Savings
C74: Based on facility energy costs entered on the Inputs worksheet and CHP operational characteristics.
E76: No CHP | F76: With CHP | G76: Savings/Cost Increase
C77: Annual Operating Costs
C78: Purchased Electricity | E78: =E61*AvgElecPrice -> 0 | F78: =IF(CHPSysTypeDef="No CHP","No CHP",E61*AvgElecPrice-F62*AvgElecPrice*ElecAvoidedDefault) -> No CHP | G78: =IF(CHPSysTypeDef="No CHP","No CHP",E78-F78) -> No CHP
C79: Purchased Non-CHP Thermal Equipment Fuel | E79: =E71*BoilerFuelPrice -> 0 | F79: =IF(CHPSysTypeDef="No CHP","No CHP",F70*CHPFuelPrice) -> No CHP | G79: =IF(CHPSysTypeDef="No CHP","No CHP",E79-F79) -> No CHP
C80: Purchased CHP Fuel | E80: 0 | F80: =IF(CHPSysTypeDef="No CHP","No CHP",F69*CHPFuelPrice) -> No CHP | G80: =IF(CHPSysTypeDef="No CHP","No CHP",E80-F80) -> No CHP
C81: Operation and Maintenance | E81: 0 | F81: =IF(CHPSysTypeDef="No CHP","No CHP",OandMCostsDef*F62) -> No CHP | G81: =IF(CHPSysTypeDef="No CHP","No CHP",E81-F81) -> No CHP
C82: Annual Operating Savings | G82: =IF(CHPSysTypeDef="No CHP", "No CHP",SUM(G78:G81)) -> No CHP
C84: The information on this worksheet should be interpreted by referring to the User Manual.

Sheet User Supplied Performance Specs (hidden)
D3: User Supplied Performance Specifications
D4: CHP Payback Estimator + Spark Spread
B6: CHP Performance Specifications
C8: CHP System Size, kW (User Input)
C9: CHP System Type (User Input)
C10: Heat Rate, Btu/kWh (User Input)
C11: Thermal Energy Output, Btu/kWh (User Input)
C12: Electric Efficiency, % (HHV) (Calculated Value)
C13: Availability, % (User Input)
C14: Power to Heat Ratio (Calculated Value)
B16: CHP Cost Specifications
C18: Operation and Maintenance Cost, $/kWh (User Input)
C19: Equipment Cost, $ (User Input)
C20: Installation Cost, $ (User Input)
C21: Total Installed Cost, $ (Calculated Value)

Sheet State Average Energy Prices (hidden)
D3: State Average Energy Prices
D4: CHP Payback Estimator + Spark Spread | H4: 0 | I4: 1 | J4: 2 | K4: 3 | L4: 4 | M4: 5
C6: State | D6: Electric Prices ($/kWh) | F6: Natural Gas Prices ($/MMBtu)
D7: Commercial | E7: Industrial | F7: Commercial | G7: Industrial
C8: Alabama | D8: 0.1111 | E8: 0.0604 | F8: 10.65 | G8: 3.79
C9: Alaska | D9: 0.1756 | E9: 0.1522 | F9: 8.34 | G9: 5.06
C10: Arizona | D10: 0.1041 | E10: 0.0607 | F10: 8.83 | G10: 5.79
C11: Arkansas | D11: 0.0823 | E11: 0.0608 | F11: 7.14 | G11: 5.78
C12: California | D12: 0.1507 | E12: 0.1192 | F12: 8.42 | G12: 6.79
C13: Colorado | D13: 0.096 | E13: 0.0735 | F13: 6.42 | G13: 4.89
C14: Connecticut | D14: 0.1575 | E14: 0.1281 | F14: 8.79 | G14: 6.07
C15: Delaware | D15: 0.1007 | E15: 0.0811 | F15: 9.58 | G15: 9.02
C16: District of Columbia | D16: 0.1172 | E16: 0.088 | F16: 9.88 | G16: N/A
C17: Florida | D17: 0.089 | E17: 0.0769 | F17: 10.42 | G17: 5.77
C18: Georgia | D18: 0.0981 | E18: 0.0584 | F18: 7.92 | G18: 4.1
C19: Hawaii | D19: 0.2464 | E19: 0.2069 | F19: 27.02 | G19: 15.7
C20: Idaho | D20: 0.0776 | E20: 0.0655 | F20: 7.12 | G20: 5.19
C21: Illinois | D21: 0.0902 | E21: 0.0651 | F21: 7.14 | G21: 5.03
C22: Indiana | D22: 0.1001 | E22: 0.0697 | F22: 6.55 | G22: 4.99
C23: Iowa | D23: 0.0917 | E23: 0.0605 | F23: 5.99 | G23: 4.7
C24: Kansas | D24: 0.1047 | E24: 0.0749 | F24: 8.41 | G24: 3.69
C25: Kentucky | D25: 0.0957 | E25: 0.0567 | F25: 7.89 | G25: 3.77
C26: Louisiana | D26: 0.0859 | E26: 0.0508 | F26: 7.92 | G26: 3.11
C27: Maine | D27: 0.1208 | E27: 0.0896 | F27: 10.63 | G27: 7.68
C28: Maryland | D28: 0.1099 | E28: 0.0789 | F28: 8.94 | G28: 8.8
C29: Massachusetts | D29: 0.156 | E29: 0.1338 | F29: 9.48 | G29: 7.4
C30: Michigan | D30: 0.1064 | E30: 0.0691 | F30: 6.9 | G30: 5.75
C31: Minnesota | D31: 0.0986 | E31: 0.0737 | F31: 6.44 | G31: 4.19
C32: Mississippi | D32: 0.0957 | E32: 0.0579 | F32: 7.8 | G32: 4.35
C33: Missouri | D33: 0.0926 | E33: 0.0712 | F33: 7.89 | G33: 6.29
C34: Montana | D34: 0.1019 | E34: 0.0506 | F34: 7.13 | G34: 5.68
C35: Nebraska | D35: 0.088 | E35: 0.0769 | F35: 5.45 | G35: 4.04
C36: Nevada | D36: 0.0793 | E36: 0.0588 | F36: 6.84 | G36: 5.9
C37: New Hampshire | D37: 0.1443 | E37: 0.1234 | F37: 11.36 | G37: 8.59
C38: New Jersey | D38: 0.1226 | E38: 0.1016 | F38: 7.93 | G38: 6.59
C39: New Mexico | D39: 0.0975 | E39: 0.0584 | F39: 5.68 | G39: 4.18
C40: New York | D40: 0.1445 | E40: 0.0603 | F40: 6.18 | G40: 5.92
C41: North Carolina | D41: 0.0862 | E41: 0.0631 | F41: 7.71 | G41: 5.43
C42: North Dakota | D42: 0.0915 | E42: 0.0798 | F42: 5.45 | G42: 2.62
C43: Ohio | D43: 0.0997 | E43: 0.0698 | F43: 5.74 | G43: 4.81
C44: Oklahoma | D44: 0.0766 | E44: 0.0502 | F44: 7.72 | G44: 8.04
C45: Oregon | D45: 0.0891 | E45: 0.0605 | F45: 9.3 | G45: 5.73
C46: Pennsylvania | D46: 0.0922 | E46: 0.0692 | F46: 8.15 | G46: 7.4
C47: Rhode Island | D47: 0.1488 | E47: 0.1348 | F47: 11.16 | G47: 8.7
C48: South Carolina | D48: 0.1028 | E48: 0.0609 | F48: 8.42 | G48: 4.2
C49: South Dakota | D49: 0.0958 | E49: 0.0757 | F49: 5.64 | G49: 4.78
C50: Tennessee | D50: 0.1019 | E50: 0.0568 | F50: 7.8 | G50: 4.44
C51: Texas | D51: 0.0826 | E51: 0.0533 | F51: 6.89 | G51: 2.65
C52: Utah | D52: 0.0875 | E52: 0.0633 | F52: 7.43 | G52: 5.52
C53: Vermont | D53: 0.1454 | E53: 0.1023 | F53: 6.63 | G53: 5.2
C54: Virginia | D54: 0.0793 | E54: 0.0656 | F54: 7.23 | G54: 4.42
C55: Washington | D55: 0.0843 | E55: 0.0443 | F55: 8.49 | G55: 7.47
C56: West Virginia | D56: 0.0935 | E56: 0.0657 | F56: 7.75 | G56: 2.43
C57: Wisconsin | D57: 0.1077 | E57: 0.075 | F57: 6.29 | G57: 5.05
C58: Wyoming | D58: 0.094 | E58: 0.0692 | F58: 6.54 | G58: 3.96
C60: Electric Price Source: Compiled from EIA 2016 State Average Industrial and Commercial Retail Electricity Prices.
C61: https://www.eia.gov/electricity/data.php#sales
C63: Natural Gas Price Source: Compiled from EIA 2016 Average State Industrial and Commercial Natural Gas Prices.
C64: https://www.eia.gov/dnav/ng/ng_pri_sum_dcu_nus_m.htm

Sheet Results - HighSys (hidden)
D3: Results
D4: CHP Screening Tool
B6: See the User Manual for discussion about the source of the information presented on this worksheet.
B7: Facility Energy Use
C8: This information is calculated based on values entered on the Inputs worksheet and is used to define the CHP system for analysis.
C10: Facility Average Electric Load, kW | E10: =IF(OpHours=0,0,ElecUse/OpHours*12) -> 0
C11: Facility Average Heating Load, MMBtu/hour | E11: =IF(OpHours=0,0,IF(ThermalUse=0,FuelUse*0.8/OpHours*12,ThermalUse/OpHours*12)) -> 0
B13: CHP Performance Information
C14: This information has been defined by the tool based on values entered on the Inputs worksheet.
C16: Electric Load that could be Supported by CHP (kW) | E16: =IFERROR(Defaults!C18,"No CHP") -> 0
C17: CHP System Type | E17: =IFERROR(CHPSysTypeDef2,"No CHP") -> No CHP
C18: Total CHP Efficiency (HHV) | E18: =IFERROR(TotEffDef2,"No CHP") -> 0.7496336996
B20: Estimated CHP Cost to Generate Electricity
C21: CHP cost to generate electricity is the cost for the facility to generate electricity with CHP. It accounts for variable costs to operate and maintain the CHP system, the fixed cost associated with the purchase of the CHP system, and any available performance incentives the facility receives for electricity generated with the CHP system.
C23: Operating Cost to Generate | F23: $/kWh
C24: CHP Fuel | F24: =IFERROR(IF(CHPSysTypeDef2="No CHP","No CHP",F69*CHPFuelPrice/F62),"-") -> No CHP
C25: Operation and Maintenance | F25: =IFERROR(OandMCostsDef2,"-") -> 0.06
C26: Thermal Energy Credit | F26: =IFERROR(IF(CHPSysTypeDef2="No CHP","No CHP",-(E70-F70)*BoilerFuelPrice/F62),"-") -> No CHP
C27: Operating Costs to Generate Electricity | F27: =IFERROR(IF(CHPSysTypeDef2="No CHP","No CHP",SUM(F24:F26)),"-") -> No CHP
C28: Capital Charge | F28: =IFERROR(IF(CHPSysTypeDef2="No CHP","No CHP",PMT(CostCapitalDefault,EconLifeDef2,-TotalCapCostDef2+CapIncentive)/OpHours/CHPAvailabilityDef2),"-") -> No CHP
C29: Total Costs to Generate Electricity | F29: =IFERROR(IF(CHPSysTypeDef2="No CHP","No CHP",F27+F28),"-") -> No CHP
C30: Performance Incentive | F30: =IFERROR(-Lifetime_PerfInc2,"-") -> -
C31: Net Total Cost to Generate Electricity After Perf. Incentive | F31: =IFERROR(IF(CHPSysTypeDef2="No CHP","No CHP",F29+F30),"-") -> No CHP
B33: CHP Spark Spread
C34: "CHP spark spread" is the difference between the all-in electric rate paid by the facility before CHP, and the effective electric rate paid with CHP. The effective electric rate paid by the facility with CHP is a blend of the net total cost to generate electricity after performance incentive and the all-in electric rate paid to the utility for any electricity needed beyond what the CHP system produces. The greater the "CHP spark spread," the higher the potential return on investment.
C36: All-in Electric Rate Before CHP, $/kWh | E36: =AvgElecPrice -> 0
C37: Effective Electric Rate with CHP, $/kWh | E37: =IF(CHPSysTypeDef="No CHP","No CHP",(((F31*F62)+((F78/F61)*(F61)))/F63)) -> No CHP
C38: CHP Spark Spread, $/kWh | E38: =E36-E37 -> 
B40: ="Payback Period" -> Payback Period
C41: Payback period is the period of time required to recoup the capital cost of the CHP system, or to reach a break even point. The payback period is calculated based on the net costs and savings after incentives. Information about how the payback period is calculated is available in the User Manual.
C43: Payback Period Range (Years) | E43: =Payback2 -> No Savings
B45: CHP Capital Cost and Incentives
C46: This information has been defined by the tool based on values entered on the Inputs worksheet. Costs are given as ranges based on selected CHP systems sized lower and higher than the facility electric load that could be supported by CHP.
E48: Rate ($/kW) | F48: Total $
C49: Equipment Cost | E49: =IFERROR(EquipCostDef2,"No CHP") -> 4000 | F49: =IFERROR(EquipCostDef2*CHPSize2,"No CHP") -> 0
C50: Installation Cost | E50: =IFERROR(InstCostDef2,"No CHP") -> 8000 | F50: =IFERROR(InstCostDef2*CHPSize2,"No CHP") -> 0
C51: Total Capital Cost | E51: =IFERROR(TotalCapCostDef2,"No CHP") -> 12000 | F51: =IFERROR(TotalCapCostDef2*CHPSize2,"No CHP") -> 0
C52: Federal ITC | E52: =IF(AND(E49="No CHP",E50="No CHP",E51="No CHP"),"No CHP",ITCIncentive2) -> FALSE | F52: =IFERROR(ITCIncentive2*CHPSize2,"No CHP") -> 0
C53: Capital Incentive | E53: =IF(AND(,E49="No CHP",E50="No CHP",E51="No CHP"),"No CHP",CapIncentive) -> 0 | F53: =IFERROR(CapIncentive*CHPSize2,"No CHP") -> 0
C54: Net Capital Cost After Incentives | E54: =IFERROR(TotalCapCostDef2-CapIncentive-(ITCIncentive/CHPSize2),"No CHP") -> No CHP | F54: =IFERROR((TotalCapCostDef2-CapIncentive-ITCIncentive)*CHPSize2,"No CHP") -> 0
B56: Estimated Change in Annual Energy and Fuel Use
C57: Based on facility energy use values enetered on the Inputs worksheet and CHP operational characteristics.
E59: No CHP | F59: With CHP | G59: Increase/Decrease
C60: Annual Electricity Use, kWh
C61: Purchased Electricity | E61: =ElecUse*12 -> 0 | F61: =IF(CHPSysTypeDef2="No CHP","No CHP",IF(E61-F62<0,0,E61-F62)) -> No CHP | G61: =IF(CHPSysTypeDef2="No CHP","No CHP",F61-E61) -> No CHP
C62: CHP Electricity Generation | E62: 0 | F62: =IF(CHPSysTypeDef2="No CHP","No CHP",CHPSize2*CHPAvailabilityDef2*OpHours) -> No CHP | G62: =IF(CHPSysTypeDef2="No CHP","No CHP",F62) -> No CHP
C63: Total Annual Electricity Use, kWh | E63: =SUM(E61:E62) -> 0 | F63: =SUM(F61:F62) -> 0 | G63: =IF(CHPSysTypeDef2="No CHP","No CHP",F63-E63) -> No CHP
C64: Annual Thermal Energy Use, MMBtu/yr
C65: CHP | E65: 0 | F65: =IF(CHPSysTypeDef2="No CHP","No CHP",IF(CHPThermOutputDef2*CHPThermUtilDefault*F62/1000000>E66,E66*CHPAvailabilityDef2,MIN(E66*CHPAvailabilityDef2,CHPThermOutputDef2*CHPThermUtilDefault*F62/1000000))) -> No CHP | G65: =IF(CHPSysTypeDef2="No CHP","No CHP",E65-F65) -> No CHP
C66: Non-CHP Thermal Equipment | E66: =BaseThermalUse2*OpHours -> 0 | F66: =IF(CHPSysTypeDef2="No CHP","No CHP",IF(F65>E66,0,E66-F65)) -> No CHP | G66: =IF(CHPSysTypeDef2="No CHP","No CHP",E66-F66) -> No CHP
C67: Total Thermal Energy Use, MMBtu/yr | E67: =E66 -> 0 | F67: =IF(CHPSysTypeDef2="No CHP","No CHP",F66+F65) -> No CHP | G67: =IF(CHPSysTypeDef2="No CHP","No CHP",F67-E67) -> No CHP
C68: Annual Fuel Use, MMBtu/yr
C69: CHP | E69: 0 | F69: =IF(CHPSysTypeDef2="No CHP","No CHP",F62*CHPHeatRateDef2/1000000) -> No CHP | G69: =IF(CHPSysTypeDef2="No CHP","No CHP",F69-E69) -> No CHP
C70: Non-CHP Thermal Equipment | E70: =IFERROR(E66/SiteBoilerEff,0) -> 0 | F70: =IF(CHPSysTypeDef2="No CHP","No CHP",F66/SiteBoilerEff) -> No CHP | G70: =IF(CHPSysTypeDef2="No CHP","No CHP",F70-E70) -> No CHP
C71: Annual Total Fuel Use, MMBtu/yr | E71: =E70 -> 0 | F71: =IF(CHPSysTypeDef2="No CHP","No CHP",F70+F69) -> No CHP | G71: =IF(CHPSysTypeDef2="No CHP","No CHP",F71-E71) -> No CHP
B73: Estimated Annual Operating Savings
C74: Based on facility energy costs entered on the Inputs worksheet and CHP operational characteristics.
E76: No CHP | F76: With CHP | G76: Savings/Cost Increase
C77: Annual Operating Costs
C78: Purchased Electricity | E78: =E61*AvgElecPrice -> 0 | F78: =IF(CHPSysTypeDef2="No CHP","No CHP",E61*AvgElecPrice-F62*AvgElecPrice*ElecAvoidedDefault) -> No CHP | G78: =IF(CHPSysTypeDef2="No CHP","No CHP",E78-F78) -> No CHP
C79: Purchased Non-CHP Thermal Equipment Fuel | E79: =E71*BoilerFuelPrice -> 0 | F79: =IF(CHPSysTypeDef2="No CHP","No CHP",F70*CHPFuelPrice) -> No CHP | G79: =IF(CHPSysTypeDef2="No CHP","No CHP",E79-F79) -> No CHP
C80: Purchased CHP Fuel | E80: 0 | F80: =IF(CHPSysTypeDef2="No CHP","No CHP",F69*CHPFuelPrice) -> No CHP | G80: =IF(CHPSysTypeDef2="No CHP","No CHP",E80-F80) -> No CHP
C81: Operation and Maintenance | E81: 0 | F81: =IF(CHPSysTypeDef2="No CHP","No CHP",OandMCostsDef2*F62) -> No CHP | G81: =IF(CHPSysTypeDef2="No CHP","No CHP",E81-F81) -> No CHP
C82: Annual Operating Savings | G82: =IF(CHPSysTypeDef2="No CHP", "No CHP",SUM(G78:G81)) -> No CHP
C84: The information on this worksheet should be interpreted by referring to the User Manual.

Sheet Results
D3: Results
D4: CHP Screening Tool
B6: See the User Manual for discussion about the source of the information presented on this worksheet.
B7: Facility Energy Use
C8: This information is calculated based on values entered on the Inputs worksheet and is used to define the CHP system for analysis.
C10: Facility Average Electric Load, kW | E10: =BaseElecDemand2 -> 0
C11: Facility Average Heating Load, MMBtu/hour | E11: =BaseThermalUse -> 0
B13: CHP Performance Information
C14: This information has been defined by the tool based on values entered on the Inputs worksheet and default technology options. The tool chooses two CHP system options that most closely match the facility average electric and heating loads. The two system choices are based on selecting one system sized smaller than the calculated load and one sized larger than the calculated load. For both options, the tool uses pro-rated cost and performance data to approximate a CHP system that matches the user’s calculated load. The final equipment selection would depend on a detailed assessment of facility energy requirements and available technology options. More details can be found in the user manual, and additional potential system choices can be found in the EPA's CHP Catalog of Technologies.
C16: Option Reference Names | E16: =IF(AND(E17<>0,E18<>0),"Option 1","") ->  | F16: =IF(AND(F17<>0,F18<>0),"Option 2","") -> 
C17: Electric Load That Could be Supported by CHP (kW) | E17: =CHP_Size -> 0 | F17: =CHP_Size2 -> 0
C18: CHP System Type Options | E18: ='Results - LowSys'!E17 -> No CHP | F18: ='Results - HighSys'!E17 -> No CHP
C19: Total CHP Efficiency (HHV) | E19: ='Results - LowSys'!E18 -> 0.7496336996 | F19: ='Results - HighSys'!E18 -> 0.7496336996
B21: ="Payback Period" -> Payback Period
C22: Payback period is the period of time required to recoup the capital cost of the CHP system, or to reach a break even point. The payback period is calculated based on the net costs and savings after incentives. Information about how the payback period is calculated is provided in the User Manual.
C24: CHP System Type Option | E24: Option 1 | F24: Option 2
C25: Payback Period (Years) | E25: ='Results - LowSys'!E43:F43 -> No Savings | F25: ='Results - HighSys'!E43 -> No Savings
C26: Payback Period Range | E26: =IF(OR(Payback="Insufficient Savings",Payback2="Insufficient Savings"),"Insufficient Savings", CONCATENATE(IF(ROUNDDOWN(MIN(E25,F25),0)+1=ROUND(MIN(E25,F25),1),ROUNDDOWN(MIN(E25,F25),0)+1,ROUNDDOWN(MIN(E25,F25),0))," - ",IF(ROUNDUP(MAX(F25,E25),0)-1=ROUND(MAX(F25,E25),1),ROUNDUP(MAX(F25,E25),0)-1,ROUNDUP(MAX(F25,E25),0))," Years")) -> 0 - 0 Years
B28: CHP Spark Spread
C29: "CHP spark spread" is the difference between the all-in electric rate paid by the facility before CHP, and the effective electric rate paid with CHP. The effective electric rate paid by the facility with CHP is a blend of the net total cost to generate electricity after performance incentive and the all-in electric rate paid to the utility for any electricity needed beyond what the CHP system produces. The greater the "CHP spark spread," the higher the potential return on investment.
C31: CHP System Type Option | E31: Option 1 ($/kWh) | F31: Option 2 ($/kWh)
C32: All-in Electric Rate Before CHP, $/kWh | E32: ='Results - LowSys'!E36:F36 -> 0 | F32: ='Results - HighSys'!E36 -> 0
C33: Effective Electric Rate with CHP, $/kWh | E33: ='Results - LowSys'!E37:F37 -> No CHP | F33: ='Results - HighSys'!E37 -> No CHP
C34: CHP Spark Spread, $/kWh | E34: =IFERROR('Results - LowSys'!E38:F38,"No CHP") -> No CHP | F34: =IFERROR('Results - HighSys'!E38,"No CHP") -> No CHP
C35: Note: If the CHP spark spread is a negative value, the project may still be favorable depending on the user’s needs (such as resilience) and payback period requirements. To further understand the results, please contact the CHP Partnership at chp@epa.gov.
B36: Estimated CHP Cost to Generate Electricity
C37: CHP cost to generate electricity is the cost for the facility to generate electricity with CHP. It accounts for variable costs to operate and maintain the CHP system, the fixed cost associated with the purchase of the CHP system, and any available performance incentives the facility receives for electricity generated with the CHP system.
C39: CHP System Type Option | E39: Option 1 ($/kWh) | F39: Option 2 ($/kWh)
C40: CHP Fuel | E40: ='Results - LowSys'!F24 -> No CHP | F40: ='Results - HighSys'!F24 -> No CHP
C41: Operation and Maintenance | E41: ='Results - LowSys'!F25 -> 0.06 | F41: ='Results - HighSys'!F25 -> 0.06
C42: Thermal Energy Credit | E42: ='Results - LowSys'!F26 -> No CHP | F42: ='Results - HighSys'!F26 -> No CHP
C43: Operating Costs to Generate Electricity | E43: ='Results - LowSys'!F27 -> No CHP | F43: ='Results - HighSys'!F27 -> No CHP
C44: Capital Charge | E44: ='Results - LowSys'!F28 -> No CHP | F44: ='Results - HighSys'!F28 -> No CHP
C45: Total Costs to Generate Electricity | E45: ='Results - LowSys'!F29 -> No CHP | F45: ='Results - HighSys'!F29 -> No CHP
C46: Performance Incentive | E46: ='Results - LowSys'!F30 -> - | F46: ='Results - HighSys'!F30 -> -
C47: Net Total Cost to Generate Electricity After Perf. Incentive | E47: ='Results - LowSys'!F31 -> No CHP | F47: ='Results - HighSys'!F31 -> No CHP
B49: CHP Capital Cost and Incentives
C50: This information has been defined by the tool based on values entered on the Inputs worksheet. Costs are given as ranges based on pro-rated cost estimates for the selected CHP systems sized lower and higher than the facility electric load that could be supported by CHP.
C52: CHP System Type Option | E52: Option 1 (Total $) | F52: Option 2 (Total $)
C53: Equipment Cost | E53: ='Results - LowSys'!F49 -> 0 | F53: ='Results - HighSys'!F49 -> 0
C54: Installation Cost | E54: ='Results - LowSys'!F50 -> 0 | F54: ='Results - HighSys'!F50 -> 0
C55: Total Capital Cost | E55: ='Results - LowSys'!F51 -> 0 | F55: ='Results - HighSys'!F51 -> 0
C56: Federal ITC | E56: ='Results - LowSys'!F52 -> 0 | F56: ='Results - HighSys'!F52 -> 0
C57: Capital Incentive | E57: ='Results - LowSys'!F53 -> 0 | F57: ='Results - HighSys'!F53 -> 0
C58: Net Capital Cost After Incentives | E58: ='Results - LowSys'!F54 -> 0 | F58: ='Results - HighSys'!F54 -> 0
B60: Estimated Change in Annual Energy and Fuel Use
C61: Energy and fuel use calculations are based on facility energy values entered on the Inputs worksheet and CHP operational characteristics.
E63: No CHP | F63: With Option 1 | G63: With Option 2
C64: Annual Electricity Use, kWh
C65: Purchased Electricity | E65: ='Results - LowSys'!E61 -> 0 | F65: ='Results - LowSys'!F61 -> No CHP | G65: ='Results - HighSys'!F61 -> No CHP
C66: CHP Electricity Generation | E66: ='Results - LowSys'!E62 -> 0 | F66: ='Results - LowSys'!F62 -> No CHP | G66: ='Results - HighSys'!F62 -> No CHP
C67: Total Annual Electricity Use, kWh | E67: ='Results - LowSys'!E63 -> 0 | F67: ='Results - LowSys'!F63 -> 0 | G67: ='Results - HighSys'!F63 -> 0
C68: Annual Thermal Energy Use, MMBtu/yr | E68: ='Results - LowSys'!E64 -> 0 | F68: ='Results - LowSys'!F64 -> 0 | G68: ='Results - HighSys'!F64 -> 0
C69: CHP | E69: ='Results - LowSys'!E65 -> 0 | F69: ='Results - LowSys'!F65 -> No CHP | G69: ='Results - HighSys'!F65 -> No CHP
C70: Non-CHP Thermal Equipment | E70: ='Results - LowSys'!E66 -> 0 | F70: ='Results - LowSys'!F66 -> No CHP | G70: ='Results - HighSys'!F66 -> No CHP
C71: Total Thermal Energy Use, MMBtu/yr | E71: ='Results - LowSys'!E67 -> 0 | F71: ='Results - LowSys'!F67 -> No CHP | G71: ='Results - HighSys'!F67 -> No CHP
C72: Annual Fuel Use, MMBtu/yr | E72: ='Results - LowSys'!E68 -> 0 | F72: ='Results - LowSys'!F68 -> 0 | G72: ='Results - HighSys'!F68 -> 0
C73: CHP | E73: ='Results - LowSys'!E69 -> 0 | F73: ='Results - LowSys'!F69 -> No CHP | G73: ='Results - HighSys'!F69 -> No CHP
C74: Non-CHP Thermal Equipment | E74: ='Results - LowSys'!E70 -> 0 | F74: ='Results - LowSys'!F70 -> No CHP | G74: ='Results - HighSys'!F70 -> No CHP
C75: Annual Total Fuel Use, MMBtu/yr | E75: ='Results - LowSys'!E71 -> 0 | F75: ='Results - LowSys'!F71 -> No CHP | G75: ='Results - HighSys'!F71 -> No CHP
B77: Estimated Annual Operating Savings
C78: Based on facility energy costs entered on the Inputs worksheet and CHP operational characteristics.
E80: No CHP | F80: With Option 1 | G80: With Option 2
C81: Annual Operating Costs
C82: Purchased Electricity | E82: ='Results - LowSys'!E78 -> 0 | F82: ='Results - LowSys'!F78 -> No CHP | G82: ='Results - HighSys'!F78 -> No CHP
C83: Purchased Non-CHP Thermal Equipment Fuel | E83: ='Results - LowSys'!E79 -> 0 | F83: ='Results - LowSys'!F79 -> No CHP | G83: ='Results - HighSys'!F79 -> No CHP
C84: Purchased CHP Fuel | E84: ='Results - LowSys'!E80 -> 0 | F84: ='Results - LowSys'!F80 -> No CHP | G84: ='Results - HighSys'!F80 -> No CHP
C85: Operation and Maintenance | E85: ='Results - LowSys'!E81 -> 0 | F85: ='Results - LowSys'!F81 -> No CHP | G85: ='Results - HighSys'!F81 -> No CHP
C86: Total Annual Operating Costs | E86: =SUM(E82:E85) -> 0 | F86: =SUM(F82:F85) -> 0 | G86: =SUM(G82:G85) -> 0
C87: Annual Operating Savings Compared to No CHP | F87: =E86-F86 -> 0 | G87: =E86-G86 -> 0
C89: The EPA CHP Screening Tool is a preliminary assessment tool to give a user a basic understanding of the technical and economic considerations that need to be factored in evaluating CHP at a facility. The EPA CHP Partnership does not consider the results an investment grade analysis. A more detailed feasibility study should be conducted before making a final decision. CHPP Partners and the DOE CHP TAPs can help with such an analysis. For a better understanding of the tool and any other questions, please contact the CHP Partnership at chp@epa.gov.

Sheet CHP Performance Specifications (hidden)
E3: Cost and Performance Specifications
E4: CHP Screening Tool
D6: System | F6: No CHP | G6: 5 kW Packaged Recip Engine | H6: 10 kW Packaged Recip Engine | I6: 35 kW Packaged Recip Engine | J6: 75 kW Packaged Recip Engine | K6: 100 kW Packaged Recip Engine | L6: 285 kW Packaged Recip Engine | M6: 375 kW Packaged Recip Engine | N6: 550 kW Packaged Engine | O6: 1.1 MW Recip Engine | P6: 3.3 MW Recip Engine | Q6: 7.5 MW Gas Turbine | R6: 10.7 MW Gas Turbine | S6: 20.4 MW Gas Turbine | T6: 40.4 MW Gas Turbine
C7: 1 | D7: Minimum CHP Size, kW | F7: 0 | G7: 5 | H7: 10 | I7: 35 | J7: 75 | K7: 100 | L7: 285 | M7: 375 | N7: 550 | O7: 1141 | P7: 3325 | Q7: 7487 | R7: 10669 | S7: 20440 | T7: 40485
C8: =C7+1 -> 2 | D8: Electric Capacity, kW | F8: 0 | G8: 5 | H8: 10 | I8: 35 | J8: 75 | K8: 100 | L8: 285 | M8: 375 | N8: 550 | O8: 1141 | P8: 3325 | Q8: 7487 | R8: 10669 | S8: 20440 | T8: 40485
C9: =C8+1 -> 3 | D9: Thermal Energy Output, MMBtu/hour | F9: 0 | G9: 0.0341 | H9: 0.0573 | I9: 0.204 | J9: 0.523 | K9: 0.61 | L9: 1.32 | M9: 1.78 | N9: 2.84 | O9: 4.46 | P9: 10.69 | Q9: 36.3 | R9: 52.2 | S9: 77.4 | T9: 133.8
C10: 4 | D10: Power to Heat Ratio | F10: No CHP | G10: =G22 -> 0.5002932551 | H10: =H22 -> 0.5954624782 | I10: 0.5853921569 | J10: 0.489292543 | K10: 0.5593442623 | L10: 0.7366818182 | M10: 0.7188202247 | N10: 0.6607746479 | O10: 0.872890583 | P10: 1.061262862 | Q10: 0.7037367493 | R10: 0.6973683525 | S10: 0.9010501292 | T10: 1.032397758
C11: 5 | D11: Market Size Bin | F11: No CHP | G11: 3-7.9 kW | H11: 8-24.9 kW | I11: 25-64.9 kW | J11: 65-89.9 kW | K11: 90-269.9 kW | L11: 270-349.9 kW | M11: 350-499.9 kW | N11: 500-999.9 kW | O11: 1-2.99 MW | P11: 3-6.99 MW | Q11: 7-9.99 MW | R11: 10-19.99 MW | S11: 20-39.99 MW | T11: >40 MW
C12: 6 | D12: Technology | F12: No CHP | G12: Recip Engine | H12: Recip Engine | I12: Recip Engine | J12: Recip Engine | K12: Recip Engine | L12: Recip Engine | M12: Recip Engine | N12: Recip Engine | O12: Recip Engine | P12: Recip Engine | Q12: Gas Turbine | R12: Gas Turbine | S12: Gas Turbine | T12: Gas Turbine
C13: 7 | D13: Equipment Cost, $/kW* | F13: No CHP | G13: 4000 | H13: 3300 | I13: 1680 | J13: 1200 | K13: 1650 | L13: 1600 | M13: 1400 | N13: 1200 | O13: 1380 | P13: 1080 | Q13: 1260 | R13: =619+92+389 -> 1100 | S13: 910 | T13: 770
C14: 8 | D14: Installation Cost, $/kW* | F14: No CHP | G14: 8000 | H14: 6700 | I14: 2710 | J14: 2130 | K14: 1250 | L14: 1600 | M14: 1300 | N14: 1000 | O14: 990 | P14: 720 | Q14: 750 | R14: 700 | S14: 560 | T14: 500
C15: 9 | D15: Total Installed Cost, $/kW | F15: No CHP | G15: =G13+G14 -> 12000 | H15: =H13+H14 -> 10000 | I15: =I13+I14 -> 4390 | J15: 3330 | K15: 2900 | L15: 3200 | M15: 2700 | N15: 2200 | O15: 2370 | P15: 1800 | Q15: 2010 | R15: 1800 | S15: 1470 | T15: 1270
C16: 10 | D16: Heat Rate, Btu/kWh | F16: No CHP | G16: =ROUND(3412/G18,-1) -> 13650 | H16: =ROUND(3412/H18,-1) -> 12190 | I16: =ROUND(3412/I18,-1) -> 11770 | J16: =ROUND(3412/J18,-1) -> 12640 | K16: =ROUND(3412/K18,-1) -> 11530 | L16: 10386.66667 | M16: 10003.33333 | N16: 9950 | O16: =ROUND(3412/O18,-1) -> 9070 | P16: 8340 | Q16: 11680 | R16: 12190 | S16: 10310 | T16: 9610
C17: 11 | D17: Thermal Energy Output, Btu/kWh | F17: No CHP | G17: =G9/G8*1000000 -> 6820 | H17: =H9/H8*1000000 -> 5730 | I17: =I9/I8*1000000 -> 5828.571429 | J17: 6973.333333 | K17: 6100 | L17: 4631.578947 | M17: 4746.666667 | N17: 5163.636364 | O17: 3908.851884 | P17: 3215.037594 | Q17: 4848.4039 | R17: 4892.679726 | S17: 3786.692759 | T17: 3304.927751
C18: 12 | D18: Electric Efficiency, % (HHV) | F18: No CHP | G18: 0.25 | H18: 0.28 | I18: 0.29 | J18: 0.27 | K18: 0.296 | L18: 0.3284980745 | M18: 0.3410863046 | N18: 0.3429145729 | O18: 0.376 | P18: 0.409 | Q18: 0.292 | R18: 0.28 | S18: 0.331 | T18: 0.355
C19: 13 | D19: O&M Costs, $/kWh | F19: No CHP | G19: 0.06 | H19: 0.03 | I19: 0.021 | J19: 0.021 | K19: 0.024 | L19: 0.021 | M19: 0.019 | N19: 0.017 | O19: 0.019 | P19: 0.016 | Q19: 0.012 | R19: 0.012 | S19: 0.009 | T19: 0.009
C20: 14 | D20: Equipment Service Life, Years | F20: No CHP | G20: 15 | H20: 15 | I20: 15 | J20: 15 | K20: 15 | L20: 15 | M20: 15 | N20: 15 | O20: 15 | P20: 15 | Q20: 20 | R20: 20 | S20: 20 | T20: 20
C21: 15 | D21: Availability | F21: No CHP | G21: 0.95 | H21: 0.95 | I21: 0.95 | J21: 0.95 | K21: 0.95 | L21: 0.95 | M21: 0.95 | N21: 0.95 | O21: 0.95 | P21: 0.95 | Q21: 0.95 | R21: 0.95 | S21: 0.95 | T21: 0.95
C22: 16 | D22: Power to Heat Ratio | F22: No CHP | G22: =3412/G17 -> 0.5002932551 | H22: 0.5954624782 | I22: 0.5853921569 | J22: 0.489292543 | K22: 0.5593442623 | L22: 0.7366818182 | M22: 0.7188202247 | N22: 0.6607746479 | O22: 0.872890583 | P22: 1.061262862 | Q22: 0.7037367493 | R22: 0.6973683525 | S22: 0.9010501292 | T22: 1.032397758
C23: 17 | D23: Hot Water or Steam | F23: No CHP | G23: Hot Water | H23: Hot Water | I23: Hot Water | J23: Hot Water | K23: Hot Water | L23: Hot Water | M23: Hot Water | N23: Hot Water | O23: HW/Steam | P23: HW/Steam | Q23: Steam | R23: Steam | S23: Steam | T23: Steam
B26: *This is a list of technologies that meets the cost-criteria approach based on data collected and incorporated in the March 2015 version of the EPA Catalog of Technologies, and the September 2017 addition of the Packaged CHP Systems
D69: Minimum CHP Size, kW | F69: =F7 -> 0 | G69: =G7 -> 5 | H69: 10 | I69: 35 | J69: 75 | K69: 100 | L69: 285 | M69: 375 | N69: 550 | O69: 1141 | P69: 3325 | Q69: 7487 | R69: 10669 | S69: 20440 | T69: 40485
D70: Electric Capacity, kW | F70: =F8 -> 0 | G70: 5 | H70: 10 | I70: 35 | J70: 75 | K70: 100 | L70: 285 | M70: 375 | N70: 550 | O70: 1141 | P70: 3325 | Q70: 7487 | R70: 10669 | S70: 20440 | T70: 40485
D71: Thermal Energy Output, MMBtu/hour | F71: 0 | G71: 0.0341 | H71: 0.0573 | I71: 0.204 | J71: 0.523 | K71: 0.61 | L71: 1.32 | M71: 1.78 | N71: 2.84 | O71: 4.46 | P71: 10.69 | Q71: 36.3 | R71: 52.2 | S71: 77.4 | T71: 133.8
D72: System | F72: =F6 -> No CHP | G72: =G6 -> 5 kW Packaged Recip Engine | H72: 10 kW Packaged Recip Engine | I72: 35 kW Packaged Recip Engine | J72: 75 kW Packaged Recip Engine | K72: 100 kW Packaged Recip Engine | L72: 285 kW Packaged Recip Engine | M72: 375 kW Packaged Recip Engine | N72: 550 kW Packaged Engine | O72: 1.1 MW Recip Engine | P72: 3.3 MW Recip Engine | Q72: 7.5 MW Gas Turbine | R72: 10.7 MW Gas Turbine | S72: 20.4 MW Gas Turbine | T72: 40.4 MW Gas Turbine

Sheet Defaults (hidden)
A1: CHP Spark Spread Defaults and Cash Flow Analysis
A2: CHP Screening Tool
A4: CHP Defaults Based on User Inputs
B6: Monthly Fuel Use in MMBtu/month? | C6: =ElecUse/VLOOKUP(Application,Applications!$B$5:$D$43,2,FALSE)*3412/1000000/0.8 ->  | E6: CHP System 1 | G6: CHP System 2
B7: Annual Facility Operating Hours | C7: =VLOOKUP(Application,Applications!$B$5:$D$43,3,FALSE) ->  | E7: Default Option Selected | G7: Default Option Selected
B8: Boiler Fuel Price, $/MMBtu | C8: =BoilerFuelPrice -> 0
B9: CHP Fuel Price, $/MMBtu | C9: =CHPFuelPrice -> 0
B10: Average Electric Price, $/kWh | C10: =AvgElecPrice -> 0
B11: Percent of Average Electric Rate Avoided | C11: 0.9
B12: Site Boiler Efficiency | C12: 0.8
B13: CHP Thermal Utilization | C13: 1
B14: Cost of Capital, % | C14: 0.07
B15: Inflation Rate % | C15: 0
B16: CHP System Size Bin | C16: =IF(CHPSize<50,0,IF(CHPSize<500,1,IF(CHPSize<1000,2,IF(CHPSize<5000,3,IF(CHPSize<20000,4,5))))) -> 0
B17: State | C17: =State -> 0
B18: Default CHP System Size | C18: =IFERROR(MIN(HLOOKUP(MAX(0.0341,BaseThermalUse),'CHP Performance Specifications'!$F$9:$T$10,2)*BaseThermalUse*1000000/3412,BaseElecDemand2),BaseElecDemand2) -> 0
B19: CHP System Type | C19: =IF(C18=0,"No CHP",IF(C18<5,HLOOKUP(5,'CHP Performance Specifications'!$F$69:$T$72,'CHP Performance Specifications'!C10),HLOOKUP(CHPSize,'CHP Performance Specifications'!$F$69:$T$72,'CHP Performance Specifications'!C10))) -> No CHP | D19: =IF(C18=0,"No CHP",IF(C18>40485,CHPSysTypeDef,INDEX('CHP Performance Specifications'!$F$72:$T$72,MATCH(CHPSize,'CHP Performance Specifications'!$F$69:$T$69)+1))) -> No CHP
B20: Equipment Cost, $/kW | C20: =IF(C18<5,HLOOKUP(5,'CHP Performance Specifications'!$F$7:$T$23,'CHP Performance Specifications'!C13),HLOOKUP(CHPSize,'CHP Performance Specifications'!$F$7:$T$23,'CHP Performance Specifications'!C13)) -> 4000 | D20: =IF(C18>40485,EquipCostDef,INDEX('CHP Performance Specifications'!$F$13:$T$13,MATCH(CHPSize,'CHP Performance Specifications'!$F$7:$T$7)+1)) -> 4000
B21: Installation Cost, $/kW | C21: =IF(C18<5,HLOOKUP(5,'CHP Performance Specifications'!$F$7:$T$23,'CHP Performance Specifications'!C14),HLOOKUP(CHPSize,'CHP Performance Specifications'!$F$7:$T$23,'CHP Performance Specifications'!C14)) -> 8000 | D21: =IF(C18>40485,InstCostDef,INDEX('CHP Performance Specifications'!$F$14:$T$14,MATCH(CHPSize,'CHP Performance Specifications'!$F$7:$T$7)+1)) -> 8000
B22: Total Capital Cost, $/kW | C22: =SUM(C20:C21) -> 12000 | D22: =SUM(D20:D21) -> 12000
B23: Heat Rate, Btu/kWh | C23: =IF(C18<5,HLOOKUP(5,'CHP Performance Specifications'!$F$7:$T$23,'CHP Performance Specifications'!C16),HLOOKUP(CHPSize,'CHP Performance Specifications'!$F$7:$T$23,'CHP Performance Specifications'!C16)) -> 13650 | D23: =IF(C18>40485,CHPHeatRateDef,INDEX('CHP Performance Specifications'!$F$16:$T$16,MATCH(CHPSize,'CHP Performance Specifications'!$F$7:$T$7)+1)) -> 13650
B24: Thermal Output, Btu/kWh | C24: =IF(C18<5,HLOOKUP(5,'CHP Performance Specifications'!$F$7:$T$23,'CHP Performance Specifications'!C17),HLOOKUP(CHPSize,'CHP Performance Specifications'!$F$7:$T$23,'CHP Performance Specifications'!C17)) -> 6820 | D24: =IF(C18>40485,CHPThermOutputDef,INDEX('CHP Performance Specifications'!$F$17:$T$17,MATCH(CHPSize,'CHP Performance Specifications'!$F$7:$T$7)+1)) -> 6820
B25: Electric Efficiency, % | C25: =IF(C18<5,HLOOKUP(5,'CHP Performance Specifications'!$F$7:$T$23,'CHP Performance Specifications'!C18),HLOOKUP(CHPSize,'CHP Performance Specifications'!$F$7:$T$23,'CHP Performance Specifications'!C18)) -> 0.25 | D25: =IF(C18>40485,ElecEffDef,INDEX('CHP Performance Specifications'!$F$18:$T$18,MATCH(CHPSize,'CHP Performance Specifications'!$F$7:$T$7)+1)) -> 0.25
B26: Total Efficiency, % | C26: =(CHPThermOutputDef/CHPHeatRateDef)+ElecEffDef -> 0.7496336996 | D26: =(CHPThermOutputDef2/CHPHeatRateDef2)+ElecEffDef2 -> 0.7496336996
B27: O&M Costs, $/kWh | C27: =IF(C18<5,HLOOKUP(5,'CHP Performance Specifications'!$F$7:$T$23,'CHP Performance Specifications'!C19),HLOOKUP(CHPSize,'CHP Performance Specifications'!$F$7:$T$23,'CHP Performance Specifications'!C19)) -> 0.06 | D27: =IF(C18>40485,OandMCostsDef,INDEX('CHP Performance Specifications'!$F$19:$T$19,MATCH(CHPSize,'CHP Performance Specifications'!$F$7:$T$7)+1)) -> 0.06
B28: Economic Life, years | C28: =IF(C18<5,HLOOKUP(5,'CHP Performance Specifications'!$F$7:$T$23,'CHP Performance Specifications'!C20),HLOOKUP(CHPSize,'CHP Performance Specifications'!$F$7:$T$23,'CHP Performance Specifications'!C20)) -> 15 | D28: =IF(C18<5,15,INDEX('CHP Performance Specifications'!$D$20:$T$20,MATCH(CHPSize,'CHP Performance Specifications'!$F$7:$T$7)+1)) -> 15
B29: CHP Plant Availability | C29: =IF('User Supplied Performance Specs'!E13>0,'User Supplied Performance Specs'!E13,IFERROR(IF(OpHours<6000,1,HLOOKUP(CHPSize,'CHP Performance Specifications'!$E$7:$S$23,'CHP Performance Specifications'!B21)),0.95)) -> 1 | D29: =IF(C18>40485,CHPAvailabilityDef,INDEX('CHP Performance Specifications'!$F$21:$T$21,MATCH(CHPSize,'CHP Performance Specifications'!$F$7:$T$7)+1)) -> 0.95
B30: Power to Heat Ratio | C30: =IF(C18<5,HLOOKUP(5,'CHP Performance Specifications'!$F$7:$T$23,'CHP Performance Specifications'!C22),HLOOKUP(CHPSize,'CHP Performance Specifications'!$F$7:$T$23,'CHP Performance Specifications'!C22)) -> 0.5002932551 | D30: =IF(C18>40485,CHPPHratioDef,INDEX('CHP Performance Specifications'!$F$22:$T$22,MATCH(CHPSize,'CHP Performance Specifications'!$F$7:$T$7)+1)) -> 0.5002932551
B32: Capital Incentive, $/kW | C32: =IncentiveValue -> 0
B33: Federal ITC, $/kW | C33: =IF(ITCSelect=1,0,IF(AND(CHPSize<=15000,ITCSelect=2),(TotalCapCostDef-CapIncentive)*0.1,IF(AND(CHPSize>15000,CHPSize<50000,ITCSelect=2),(TotalCapCostDef-CapIncentive)*0.1*(15000/CHPSize),IF(AND(CHPSize>=50000,ITCSelect=2),0)))) -> FALSE | D33: =IF(ITCSelect=1,0,IF(AND(CHPSize<=15000,ITCSelect=2),(TotalCapCostDef2-CapIncentive)*0.1,IF(AND(CHPSize>15000,CHPSize<50000,ITCSelect=2),(TotalCapCostDef2-CapIncentive)*0.1*(15000/CHPSize),IF(AND(CHPSize>=50000,ITCSelect=2),0)))) -> FALSE
B34: Performance Incentive, $/kWh | C34: =IncentiveTime -> 0
B35: Performance Incentive Years | C35: =IncentiveYears -> 0
B37: 1 | C37: 5 days/week, 8 hours/day: 2,080 hrs | D37: =52*5*8 -> 2080 | P37: 1 | Q37: 5 days/week, 8 hours/day: 2,080 hrs | R37: =52*5*8 -> 2080
B38: 2 | C38: 5 days/week, 16 hours/day: 4,160 hrs | D38: =52*5*16 -> 4160 | P38: 2 | Q38: 5 days/week, 16 hours/day: 4,160 hrs | R38: =52*5*16 -> 4160
B39: 3 | C39: 7 days/week, 16 hours/day: 5,840 hrs | D39: 5840 | P39: 3 | Q39: 7 days/week, 16 hours/day: 5,840 hrs | R39: 5840
B40: 4 | C40: 7 days/week, 24 hours/day: 8,760 hrs | D40: 8760 | P40: 4 | Q40: 7 days/week, 24 hours/day: 8,760 hrs | R40: 8760
B41: 5 | C41: I will enter a value | P41: 5 | Q41: I will enter a value
B43: 1 | C43: No | F43: 1 | G43: No | P43: 1 | Q43: No | T43: 1 | U43: No
B44: 2 | C44: Yes | D44: /kW | F44: 2 | G44: Yes | H44: /kWh | P44: 2 | Q44: Yes | R44: /kW | T44: 2 | U44: Yes | V44: /kWh
H45: Years | V45: Years
C46: Base Savings | D46: Incentive Savings | E46: Total Savings | I46: Year | J46: Cash Flow | K46: Payback | Q46: Base Savings | R46: Incentive Savings | S46: Total Savings | W46: Year | X46: Cash Flow | Y46: Payback
B47: Net Capital Investment | C47: =-(TotalCapCostDef-CapIncentive-ITCIncentive)*CHPSize -> 0 | E47: =SUM(C47:D47) -> 0 | F47: 1 | G47: NPV | H47: =NPV(CostCapitalDefault,E48:E97)+E47 -> 0 | I47: 1 | J47: =E47+E48 -> 0 | M47: Break-Even | P47: Net Capital Investment | Q47: =-(TotalCapCostDef2-CapIncentive-ITCIncentive)*CHPSize -> 0 | S47: =SUM(Q47:R47) -> 0 | T47: 1 | U47: NPV | V47: =NPV(CostCapitalDefault,S48:S97)+S47 -> 0 | W47: 1 | X47: =S47+S48 -> 0 | AA47: Break-Even
A48: 1 | B48: Year 1 Savings | C48: =AnOpSavings -> No CHP | D48: =IF(PerfIncYears=0,0,IF(PerfIncYears<A48,PerfIncYears*PerfIncentive*OpHours*CHPSize*CHPAvailabilityDef,PerfIncentive*OpHours*CHPSize*CHPAvailabilityDef)) -> 0 | E48: 0 | F48: 2 | G48: IRR | H48: =IRR(E47:E97) ->  | I48: 2 | J48: =J47+E49 -> 0 | K48: =I47+(ABS(J47)/(ABS(J48)+ABS(J47))) ->  | M48: =INDEX(J47:J76,MATCH(TRUE,J47:J76>0,0)) ->  | O48: 1 | P48: Year 1 Savings | Q48: =AnOpSavings -> No CHP | R48: =IF(PerfIncYears=0,0,IF(PerfIncYears<O48,PerfIncYears*PerfIncentive*OpHours*CHPSize*CHPAvailabilityDef,PerfIncentive*OpHours*CHPSize*CHPAvailabilityDef)) -> 0 | S48: 0 | T48: 2 | U48: IRR | V48: =IRR(S47:S97) ->  | W48: 2 | X48: =X47+S49 -> 0 | Y48: =W47+(ABS(X47)/(ABS(X48)+ABS(X47))) ->  | AA48: =INDEX(X47:X76,MATCH(TRUE,X47:X76>0,0)) -> 
A49: 2 | B49: Year 2 Savings | C49: =IF(Defaults!A49<=ProjectLifeInput,C48*(1+Inflation),0) -> 0 | D49: =IF(PerfIncYears<A48,0,IF(PerfIncYears<A49,(PerfIncYears-A48)*PerfIncentive*OpHours*CHPSize*CHPAvailabilityDef,IF(PerfIncYears<=A50,PerfIncentive*OpHours*CHPSize*CHPAvailabilityDef,IF(PerfIncYears>A50,PerfIncentive*OpHours*CHPSize*CHPAvailabilityDef)))) -> 0 | E49: 0 | F49: 3 | I49: 3 | J49: 0 | K49: =I48+(ABS(J48)/(ABS(J49)+ABS(J48))) ->  | O49: 2 | P49: Year 2 Savings | Q49: =IF(Defaults!O49<=ProjectLifeInput,Q48*(1+Inflation),0) -> 0 | R49: =IF(PerfIncYears<O48,0,IF(PerfIncYears<O49,(PerfIncYears-O48)*PerfIncentive*OpHours*CHPSize*CHPAvailabilityDef,IF(PerfIncYears<=O50,PerfIncentive*OpHours*CHPSize*CHPAvailabilityDef,IF(PerfIncYears>O50,PerfIncentive*OpHours*CHPSize*CHPAvailabilityDef)))) -> 0 | S49: 0 | T49: 3 | W49: 3 | X49: 0 | Y49: =W48+(ABS(X48)/(ABS(X49)+ABS(X48))) -> 
A50: 3 | B50: Year 3 Savings | C50: =IF(Defaults!A50<=ProjectLifeInput,C49*(1+Inflation),0) -> 0 | D50: 0 | E50: 0 | F50: 4 | I50: 4 | J50: 0 | M50: Payback | O50: 3 | P50: Year 3 Savings | Q50: =IF(Defaults!O50<=ProjectLifeInput,Q49*(1+Inflation),0) -> 0 | R50: 0 | S50: 0 | T50: 4 | W50: 4 | X50: 0 | AA50: Payback
A51: 4 | B51: Year 4 Savings | C51: =IF(Defaults!A51<=ProjectLifeInput,C50*(1+Inflation),0) -> 0 | D51: 0 | E51: 0 | F51: 5 | I51: 5 | J51: 0 | M51: =IFERROR(VLOOKUP(M48,$J$47:$K$76,2,FALSE),IF(E48>0,"Insufficient Savings","No Savings")) -> No Savings | O51: 4 | P51: Year 4 Savings | Q51: =IF(Defaults!O51<=ProjectLifeInput,Q50*(1+Inflation),0) -> 0 | R51: 0 | S51: 0 | T51: 5 | W51: 5 | X51: 0 | AA51: =IFERROR(VLOOKUP(AA48,$X$47:$Y$76,2,FALSE),IF(S48>0,"Insufficient Savings","No Savings")) -> No Savings
A52: 5 | B52: Year 5 Savings | C52: =IF(Defaults!A52<=ProjectLifeInput,C51*(1+Inflation),0) -> 0 | D52: 0 | E52: 0 | F52: 6 | I52: 6 | J52: 0 | O52: 5 | P52: Year 5 Savings | Q52: =IF(Defaults!O52<=ProjectLifeInput,Q51*(1+Inflation),0) -> 0 | R52: 0 | S52: 0 | T52: 6 | W52: 6 | X52: 0
A53: 6 | B53: Year 6 Savings | C53: =IF(Defaults!A53<=ProjectLifeInput,C52*(1+Inflation),0) -> 0 | D53: 0 | E53: 0 | F53: 7 | I53: 7 | J53: 0 | M53: Incentive Value | O53: 6 | P53: Year 6 Savings | Q53: =IF(Defaults!O53<=ProjectLifeInput,Q52*(1+Inflation),0) -> 0 | R53: 0 | S53: 0 | T53: 7 | W53: 7 | X53: 0 | AA53: Incentive Value
A54: 7 | B54: Year 7 Savings | C54: =IF(Defaults!A54<=ProjectLifeInput,C53*(1+Inflation),0) -> 0 | D54: 0 | E54: 0 | F54: 8 | I54: 8 | J54: 0 | M54: =NPV(0.07,D48:D77) -> 0 | O54: 7 | P54: Year 7 Savings | Q54: =IF(Defaults!O54<=ProjectLifeInput,Q53*(1+Inflation),0) -> 0 | R54: 0 | S54: 0 | T54: 8 | W54: 8 | X54: 0 | AA54: =NPV(0.07,R48:R77) -> 0
A55: 8 | B55: Year 8 Savings | C55: =IF(Defaults!A55<=ProjectLifeInput,C54*(1+Inflation),0) -> 0 | D55: 0 | E55: 0 | F55: 9 | I55: 9 | J55: 0 | O55: 8 | P55: Year 8 Savings | Q55: =IF(Defaults!O55<=ProjectLifeInput,Q54*(1+Inflation),0) -> 0 | R55: 0 | S55: 0 | T55: 9 | W55: 9 | X55: 0
A56: 9 | B56: Year 9 Savings | C56: =IF(Defaults!A56<=ProjectLifeInput,C55*(1+Inflation),0) -> 0 | D56: 0 | E56: 0 | F56: 10 | I56: 10 | J56: 0 | M56: Incentive Value 2 | O56: 9 | P56: Year 9 Savings | Q56: =IF(Defaults!O56<=ProjectLifeInput,Q55*(1+Inflation),0) -> 0 | R56: 0 | S56: 0 | T56: 10 | W56: 10 | X56: 0 | AA56: Incentive Value 2
A57: 10 | B57: Year 10 Savings | C57: =IF(Defaults!A57<=ProjectLifeInput,C56*(1+Inflation),0) -> 0 | D57: 0 | E57: 0 | F57: 11 | I57: 11 | J57: 0 | M57: =M54/(C18*EconLifeDef*IF(OpHours>0,OpHours,OpHoursDefault)*CHPAvailabilityDef) ->  | O57: 10 | P57: Year 10 Savings | Q57: =IF(Defaults!O57<=ProjectLifeInput,Q56*(1+Inflation),0) -> 0 | R57: 0 | S57: 0 | T57: 11 | W57: 11 | X57: 0 | AA57: =AA54/(C18*EconLifeDef2*IF(OpHours>0,OpHours,OpHoursDefault)*CHPAvailabilityDef2) -> 
A58: 11 | B58: Year 11 Savings | C58: =IF(Defaults!A58<=ProjectLifeInput,C57*(1+Inflation),0) -> 0 | D58: 0 | E58: 0 | F58: 12 | I58: 12 | J58: 0 | O58: 11 | P58: Year 11 Savings | Q58: =IF(Defaults!O58<=ProjectLifeInput,Q57*(1+Inflation),0) -> 0 | R58: 0 | S58: 0 | T58: 12 | W58: 12 | X58: 0
A59: 12 | B59: Year 12 Savings | C59: =IF(Defaults!A59<=ProjectLifeInput,C58*(1+Inflation),0) -> 0 | D59: 0 | E59: 0 | F59: 13 | I59: 13 | J59: 0 | O59: 12 | P59: Year 12 Savings | Q59: =IF(Defaults!O59<=ProjectLifeInput,Q58*(1+Inflation),0) -> 0 | R59: 0 | S59: 0 | T59: 13 | W59: 13 | X59: 0
A60: 13 | B60: Year 13 Savings | C60: =IF(Defaults!A60<=ProjectLifeInput,C59*(1+Inflation),0) -> 0 | D60: 0 | E60: 0 | F60: 14 | I60: 14 | J60: 0 | O60: 13 | P60: Year 13 Savings | Q60: =IF(Defaults!O60<=ProjectLifeInput,Q59*(1+Inflation),0) -> 0 | R60: 0 | S60: 0 | T60: 14 | W60: 14 | X60: 0
A61: 14 | B61: Year 14 Savings | C61: =IF(Defaults!A61<=ProjectLifeInput,C60*(1+Inflation),0) -> 0 | D61: 0 | E61: 0 | F61: 15 | I61: 15 | J61: 0 | O61: 14 | P61: Year 14 Savings | Q61: =IF(Defaults!O61<=ProjectLifeInput,Q60*(1+Inflation),0) -> 0 | R61: 0 | S61: 0 | T61: 15 | W61: 15 | X61: 0
A62: 15 | B62: Year 15 Savings | C62: =IF(Defaults!A62<=ProjectLifeInput,C61*(1+Inflation),0) -> 0 | D62: 0 | E62: 0 | F62: 16 | I62: 16 | J62: 0 | O62: 15 | P62: Year 15 Savings | Q62: =IF(Defaults!O62<=ProjectLifeInput,Q61*(1+Inflation),0) -> 0 | R62: 0 | S62: 0 | T62: 16 | W62: 16 | X62: 0
A63: 16 | B63: Year 16 Savings | C63: =IF(Defaults!A63<=ProjectLifeInput,C62*(1+Inflation),0) -> 0 | D63: 0 | E63: 0 | F63: 17 | I63: 17 | J63: 0 | O63: 16 | P63: Year 16 Savings | Q63: =IF(Defaults!O63<=ProjectLifeInput,Q62*(1+Inflation),0) -> 0 | R63: 0 | S63: 0 | T63: 17 | W63: 17 | X63: 0
A64: 17 | B64: Year 17 Savings | C64: =IF(Defaults!A64<=ProjectLifeInput,C63*(1+Inflation),0) -> 0 | D64: 0 | E64: 0 | F64: 18 | I64: 18 | J64: 0 | O64: 17 | P64: Year 17 Savings | Q64: =IF(Defaults!O64<=ProjectLifeInput,Q63*(1+Inflation),0) -> 0 | R64: 0 | S64: 0 | T64: 18 | W64: 18 | X64: 0
A65: 18 | B65: Year 18 Savings | C65: =IF(Defaults!A65<=ProjectLifeInput,C64*(1+Inflation),0) -> 0 | D65: 0 | E65: 0 | F65: 19 | I65: 19 | J65: 0 | O65: 18 | P65: Year 18 Savings | Q65: =IF(Defaults!O65<=ProjectLifeInput,Q64*(1+Inflation),0) -> 0 | R65: 0 | S65: 0 | T65: 19 | W65: 19 | X65: 0
A66: 19 | B66: Year 19 Savings | C66: =IF(Defaults!A66<=ProjectLifeInput,C65*(1+Inflation),0) -> 0 | D66: 0 | E66: 0 | F66: 20 | I66: 20 | J66: 0 | O66: 19 | P66: Year 19 Savings | Q66: =IF(Defaults!O66<=ProjectLifeInput,Q65*(1+Inflation),0) -> 0 | R66: 0 | S66: 0 | T66: 20 | W66: 20 | X66: 0
A67: 20 | B67: Year 20 Savings | C67: =IF(Defaults!A67<=ProjectLifeInput,C66*(1+Inflation),0) -> 0 | D67: 0 | E67: 0 | F67: 21 | I67: 21 | J67: 0 | O67: 20 | P67: Year 20 Savings | Q67: =IF(Defaults!O67<=ProjectLifeInput,Q66*(1+Inflation),0) -> 0 | R67: 0 | S67: 0 | T67: 21 | W67: 21 | X67: 0
A68: 21 | B68: Year 21 Savings | C68: =IF(Defaults!A68<=ProjectLifeInput,C67*(1+Inflation),0) -> 0 | D68: 0 | E68: 0 | F68: 22 | I68: 22 | J68: 0 | O68: 21 | P68: Year 21 Savings | Q68: =IF(Defaults!O68<=ProjectLifeInput,Q67*(1+Inflation),0) -> 0 | R68: 0 | S68: 0 | T68: 22 | W68: 22 | X68: 0
A69: 22 | B69: Year 22 Savings | C69: =IF(Defaults!A69<=ProjectLifeInput,C68*(1+Inflation),0) -> 0 | D69: 0 | E69: 0 | F69: 23 | I69: 23 | J69: 0 | O69: 22 | P69: Year 22 Savings | Q69: =IF(Defaults!O69<=ProjectLifeInput,Q68*(1+Inflation),0) -> 0 | R69: 0 | S69: 0 | T69: 23 | W69: 23 | X69: 0
A70: 23 | B70: Year 23 Savings | C70: =IF(Defaults!A70<=ProjectLifeInput,C69*(1+Inflation),0) -> 0 | D70: 0 | E70: 0 | F70: 24 | I70: 24 | J70: 0 | O70: 23 | P70: Year 23 Savings | Q70: =IF(Defaults!O70<=ProjectLifeInput,Q69*(1+Inflation),0) -> 0 | R70: 0 | S70: 0 | T70: 24 | W70: 24 | X70: 0
A71: 24 | B71: Year 24 Savings | C71: =IF(Defaults!A71<=ProjectLifeInput,C70*(1+Inflation),0) -> 0 | D71: 0 | E71: 0 | F71: 25 | I71: 25 | J71: 0 | O71: 24 | P71: Year 24 Savings | Q71: =IF(Defaults!O71<=ProjectLifeInput,Q70*(1+Inflation),0) -> 0 | R71: 0 | S71: 0 | T71: 25 | W71: 25 | X71: 0
A72: 25 | B72: Year 25 Savings | C72: =IF(Defaults!A72<=ProjectLifeInput,C71*(1+Inflation),0) -> 0 | D72: 0 | E72: 0 | F72: 26 | I72: 26 | J72: 0 | O72: 25 | P72: Year 25 Savings | Q72: =IF(Defaults!O72<=ProjectLifeInput,Q71*(1+Inflation),0) -> 0 | R72: 0 | S72: 0 | T72: 26 | W72: 26 | X72: 0
A73: 26 | B73: Year 26 Savings | C73: =IF(Defaults!A73<=ProjectLifeInput,C72*(1+Inflation),0) -> 0 | D73: 0 | E73: 0 | F73: 27 | I73: 27 | J73: 0 | O73: 26 | P73: Year 26 Savings | Q73: =IF(Defaults!O73<=ProjectLifeInput,Q72*(1+Inflation),0) -> 0 | R73: 0 | S73: 0 | T73: 27 | W73: 27 | X73: 0
A74: 27 | B74: Year 27 Savings | C74: =IF(Defaults!A74<=ProjectLifeInput,C73*(1+Inflation),0) -> 0 | D74: 0 | E74: 0 | F74: 28 | I74: 28 | J74: 0 | O74: 27 | P74: Year 27 Savings | Q74: =IF(Defaults!O74<=ProjectLifeInput,Q73*(1+Inflation),0) -> 0 | R74: 0 | S74: 0 | T74: 28 | W74: 28 | X74: 0
A75: 28 | B75: Year 28 Savings | C75: =IF(Defaults!A75<=ProjectLifeInput,C74*(1+Inflation),0) -> 0 | D75: 0 | E75: 0 | F75: 29 | I75: 29 | J75: 0 | O75: 28 | P75: Year 28 Savings | Q75: =IF(Defaults!O75<=ProjectLifeInput,Q74*(1+Inflation),0) -> 0 | R75: 0 | S75: 0 | T75: 29 | W75: 29 | X75: 0
A76: 29 | B76: Year 29 Savings | C76: =IF(Defaults!A76<=ProjectLifeInput,C75*(1+Inflation),0) -> 0 | D76: 0 | E76: 0 | F76: 30 | I76: 30 | J76: 0 | O76: 29 | P76: Year 29 Savings | Q76: =IF(Defaults!O76<=ProjectLifeInput,Q75*(1+Inflation),0) -> 0 | R76: 0 | S76: 0 | T76: 30 | W76: 30 | X76: 0
A77: 30 | B77: Year 30 Savings | C77: =IF(Defaults!A77<=ProjectLifeInput,C76*(1+Inflation),0) -> 0 | D77: 0 | E77: 0 | I77: 31 | O77: 30 | P77: Year 30 Savings | Q77: =IF(Defaults!O77<=ProjectLifeInput,Q76*(1+Inflation),0) -> 0 | R77: 0 | S77: 0 | W77: 31
A78: 31 | C78: =IF(Defaults!A78<=ProjectLifeInput,C77*(1+Inflation),0) -> 0 | D78: 0 | E78: 0 | I78: 32 | O78: 31 | Q78: =IF(Defaults!O78<=ProjectLifeInput,Q77*(1+Inflation),0) -> 0 | R78: 0 | S78: 0 | W78: 32
A79: 32 | C79: =IF(Defaults!A79<=ProjectLifeInput,C78*(1+Inflation),0) -> 0 | D79: 0 | E79: =SUM(C79:D79) -> 0 | I79: 33 | O79: 32 | Q79: =IF(Defaults!O79<=ProjectLifeInput,Q78*(1+Inflation),0) -> 0 | R79: 0 | S79: =SUM(Q79:R79) -> 0 | W79: 33
A80: 33 | C80: =IF(Defaults!A80<=ProjectLifeInput,C79*(1+Inflation),0) -> 0 | D80: 0 | E80: 0 | I80: 34 | O80: 33 | Q80: =IF(Defaults!O80<=ProjectLifeInput,Q79*(1+Inflation),0) -> 0 | R80: 0 | S80: 0 | W80: 34
A81: 34 | C81: =IF(Defaults!A81<=ProjectLifeInput,C80*(1+Inflation),0) -> 0 | D81: =IF(PerfIncYears<A80,0,IF(PerfIncYears<A81,(PerfIncYears-A80)*PerfIncentive*OpHours*CHPSize*CHPAvailabilityDef,IF(PerfIncYears<=A82,PerfIncentive*OpHours*CHPSize*CHPAvailabilityDef,IF(PerfIncYears>A82,PerfIncentive*OpHours*CHPSize*CHPAvailabilityDef)))) -> 0 | E81: 0 | I81: 35 | O81: 34 | Q81: =IF(Defaults!O81<=ProjectLifeInput,Q80*(1+Inflation),0) -> 0 | R81: 0 | S81: 0 | W81: 35
A82: 35 | B82: Year 35 Savings | C82: =IF(Defaults!A82<=ProjectLifeInput,C81*(1+Inflation),0) -> 0 | D82: 0 | E82: 0 | I82: 36 | O82: 35 | P82: Year 35 Savings | Q82: =IF(Defaults!O82<=ProjectLifeInput,Q81*(1+Inflation),0) -> 0 | R82: 0 | S82: 0 | W82: 36
A83: 36 | C83: =IF(Defaults!A83<=ProjectLifeInput,C82*(1+Inflation),0) -> 0 | D83: 0 | E83: 0 | I83: 37 | O83: 36 | Q83: =IF(Defaults!O83<=ProjectLifeInput,Q82*(1+Inflation),0) -> 0 | R83: 0 | S83: 0 | W83: 37
A84: 37 | C84: =IF(Defaults!A84<=ProjectLifeInput,C83*(1+Inflation),0) -> 0 | D84: 0 | E84: 0 | I84: 38 | O84: 37 | Q84: =IF(Defaults!O84<=ProjectLifeInput,Q83*(1+Inflation),0) -> 0 | R84: 0 | S84: 0 | W84: 38
A85: 38 | C85: =IF(Defaults!A85<=ProjectLifeInput,C84*(1+Inflation),0) -> 0 | D85: 0 | E85: 0 | I85: 39 | O85: 38 | Q85: =IF(Defaults!O85<=ProjectLifeInput,Q84*(1+Inflation),0) -> 0 | R85: 0 | S85: 0 | W85: 39
A86: 39 | C86: =IF(Defaults!A86<=ProjectLifeInput,C85*(1+Inflation),0) -> 0 | D86: 0 | E86: 0 | I86: 40 | O86: 39 | Q86: =IF(Defaults!O86<=ProjectLifeInput,Q85*(1+Inflation),0) -> 0 | R86: 0 | S86: 0 | W86: 40
A87: 40 | B87: Year 40 Savings | C87: =IF(Defaults!A87<=ProjectLifeInput,C86*(1+Inflation),0) -> 0 | D87: 0 | E87: 0 | I87: 41 | O87: 40 | P87: Year 40 Savings | Q87: =IF(Defaults!O87<=ProjectLifeInput,Q86*(1+Inflation),0) -> 0 | R87: 0 | S87: 0 | W87: 41
A88: 41 | C88: =IF(Defaults!A88<=ProjectLifeInput,C87*(1+Inflation),0) -> 0 | D88: 0 | E88: 0 | I88: 42 | O88: 41 | Q88: =IF(Defaults!O88<=ProjectLifeInput,Q87*(1+Inflation),0) -> 0 | R88: 0 | S88: 0 | W88: 42
A89: 42 | C89: =IF(Defaults!A89<=ProjectLifeInput,C88*(1+Inflation),0) -> 0 | D89: 0 | E89: 0 | I89: 43 | O89: 42 | Q89: =IF(Defaults!O89<=ProjectLifeInput,Q88*(1+Inflation),0) -> 0 | R89: 0 | S89: 0 | W89: 43
A90: 43 | C90: =IF(Defaults!A90<=ProjectLifeInput,C89*(1+Inflation),0) -> 0 | D90: 0 | E90: 0 | I90: 44 | O90: 43 | Q90: =IF(Defaults!O90<=ProjectLifeInput,Q89*(1+Inflation),0) -> 0 | R90: 0 | S90: 0 | W90: 44
A91: 44 | C91: =IF(Defaults!A91<=ProjectLifeInput,C90*(1+Inflation),0) -> 0 | D91: 0 | E91: 0 | I91: 45 | O91: 44 | Q91: =IF(Defaults!O91<=ProjectLifeInput,Q90*(1+Inflation),0) -> 0 | R91: 0 | S91: 0 | W91: 45
A92: 45 | B92: Year 45 Savings | C92: =IF(Defaults!A92<=ProjectLifeInput,C91*(1+Inflation),0) -> 0 | D92: 0 | E92: 0 | I92: 46 | O92: 45 | P92: Year 45 Savings | Q92: =IF(Defaults!O92<=ProjectLifeInput,Q91*(1+Inflation),0) -> 0 | R92: 0 | S92: 0 | W92: 46
A93: 46 | C93: =IF(Defaults!A93<=ProjectLifeInput,C92*(1+Inflation),0) -> 0 | D93: 0 | E93: 0 | I93: 47 | O93: 46 | Q93: =IF(Defaults!O93<=ProjectLifeInput,Q92*(1+Inflation),0) -> 0 | R93: 0 | S93: 0 | W93: 47
A94: 47 | C94: =IF(Defaults!A94<=ProjectLifeInput,C93*(1+Inflation),0) -> 0 | D94: 0 | E94: 0 | I94: 48 | O94: 47 | Q94: =IF(Defaults!O94<=ProjectLifeInput,Q93*(1+Inflation),0) -> 0 | R94: 0 | S94: 0 | W94: 48
A95: 48 | C95: =IF(Defaults!A95<=ProjectLifeInput,C94*(1+Inflation),0) -> 0 | D95: 0 | E95: 0 | I95: 49 | O95: 48 | Q95: =IF(Defaults!O95<=ProjectLifeInput,Q94*(1+Inflation),0) -> 0 | R95: 0 | S95: 0 | W95: 49
A96: 49 | C96: =IF(Defaults!A96<=ProjectLifeInput,C95*(1+Inflation),0) -> 0 | D96: 0 | E96: 0 | I96: 50 | O96: 49 | Q96: =IF(Defaults!O96<=ProjectLifeInput,Q95*(1+Inflation),0) -> 0 | R96: 0 | S96: 0 | W96: 50
A97: 50 | B97: Year 50 Savings | C97: =IF(Defaults!A97<=ProjectLifeInput,C96*(1+Inflation),0) -> 0 | D97: 0 | E97: 0
B99: State List | D99: Application List
A100: 1 | B100: Alabama | C100: 1 | D100: 20 - Food and Kindred Products
A101: 2 | B101: Alaska | C101: 2 | D101: 21 - Tobacco Products
A102: 3 | B102: Arizona | C102: 3 | D102: 22 - Textiles
A103: 4 | B103: Arkansas | C103: 4 | D103: 24 - Lumber and Wood
A104: 5 | B104: California | C104: 5 | D104: 25 - Furniture
A105: 6 | B105: Colorado | C105: 6 | D105: 26 - Paper
A106: 7 | B106: Connecticut | C106: 7 | D106: 27 - Printing
A107: 8 | B107: Delaware | C107: 8 | D107: 28 - Chemicals
A108: 9 | B108: District of Columbia | C108: 9 | D108: 29 - Petroleum Refining
A109: 10 | B109: Florida | C109: 10 | D109: 30 - Rubber/Misc Plastics
A110: 11 | B110: Georgia | C110: 11 | D110: 32 - Stone/Clay/Glass
A111: 12 | B111: Hawaii | C111: 12 | D111: 33 - Primary Metals
A112: 13 | B112: Idaho | C112: 13 | D112: 34 - Fabricated Metals
A113: 14 | B113: Illinois | C113: 14 | D113: 35 - Machinery/Computer Equip
A114: 15 | B114: Indiana | C114: 15 | D114: 37 - Trasportation Equip.
A115: 16 | B115: Iowa | C115: 16 | D115: 38 - Instruments
A116: 17 | B116: Kansas | C116: 17 | D116: 39 - Misc. Manufacturing
A117: 18 | B117: Kentucky | C117: 18 | D117: 4222 - Warehouses
A118: 19 | B118: Louisiana | C118: 19 | D118: 4300 - Post Offices
A119: 20 | B119: Maine | C119: 20 | D119: 4581 - Airports
A120: 21 | B120: Maryland | C120: 21 | D120: 4952 - Water Treatment/Sanitary
A121: 22 | B121: Massachusetts | C121: 22 | D121: 5200 - Big Box Retail
A122: 23 | B122: Michigan | C122: 23 | D122: 5411 - Food Sales
A123: 24 | B123: Minnesota | C123: 24 | D123: 5812 - Restaurants
A124: 25 | B124: Mississippi | C124: 25 | D124: 6512 - Office Buildings
A125: 26 | B125: Missouri | C125: 26 | D125: 6513 - Apartments
A126: 27 | B126: Montana | C126: 27 | D126: 7011 - Hotels
A127: 28 | B127: Nebraska | C127: 28 | D127: 7211 - Laundries
A128: 29 | B128: Nevada | C128: 29 | D128: 7542 - Carwashes
A129: 30 | B129: New Hampshire | C129: 30 | D129: 7832 - Movie Theaters
A130: 31 | B130: New Jersey | C130: 31 | D130: 7991 - Health Clubs
A131: 32 | B131: New Mexico | C131: 32 | D131: 7997 - Golf/Country Clubs
A132: 33 | B132: New York | C132: 33 | D132: 8051 - Nursing Homes
A133: 34 | B133: North Carolina | C133: 34 | D133: 8062 - Hospitals
A134: 35 | B134: North Dakota | C134: 35 | D134: 8211 - Schools
A135: 36 | B135: Ohio | C135: 36 | D135: 8221 - Colleges/Universities
A136: 37 | B136: Oklahoma | C136: 37 | D136: 8412 - Museums
A137: 38 | B137: Oregon | C137: 38 | D137: 9223 - Prisons
A138: 39 | B138: Pennsylvania | C138: 39 | D138: N.C. - Data Centers
A139: 40 | B139: Rhode Island
A140: 41 | B140: South Carolina
A141: 42 | B141: South Dakota
A142: 43 | B142: Tennessee
A143: 44 | B143: Texas
A144: 45 | B144: Utah
A145: 46 | B145: Vermont
A146: 47 | B146: Virginia
A147: 48 | B147: Washington
A148: 49 | B148: West Virginia
A149: 50 | B149: Wisconsin
A150: 51 | B150: Wyoming
A154: AL | B154: Alabama
A155: AK | B155: Alaska
A156: AZ | B156: Arizona
A157: AR | B157: Arkansas
A158: CA | B158: California
A159: CO | B159: Colorado
A160: CT | B160: Connecticut
A161: DE | B161: Delaware
A162: FL | B162: Florida
A163: GA | B163: Georgia
A164: HI | B164: Hawaii
A165: ID | B165: Idaho
A166: IL | B166: Illinois
A167: IN | B167: Indiana
A168: IA | B168: Iowa
A169: KS | B169: Kansas
A170: KY | B170: Kentucky
A171: LA | B171: Louisiana
A172: ME | B172: Maine
A173: MD | B173: Maryland
A174: MA | B174: Massachusetts
A175: MI | B175: Michigan
A176: MN | B176: Minnesota
A177: MS | B177: Mississippi
A178: MO | B178: Missouri
A179: MT | B179: Montana
A180: NE | B180: Nebraska
A181: NV | B181: Nevada
A182: NH | B182: New Hampshire
A183: NJ | B183: New Jersey
A184: NM | B184: New Mexico
A185: NY | B185: New York
A186: NC | B186: North Carolina
A187: ND | B187: North Dakota
A188: OH | B188: Ohio
A189: OK | B189: Oklahoma
A190: OR | B190: Oregon
A191: PA | B191: Pennsylvania
A192: RI | B192: Rhode Island
A193: SC | B193: South Carolina
A194: SD | B194: South Dakota
A195: TN | B195: Tennessee
A196: TX | B196: Texas
A197: UT | B197: Utah
A198: VT | B198: Vermont
A199: VA | B199: Virginia
A200: WA | B200: Washington
A201: WV | B201: West Virginia
A202: WI | B202: Wisconsin
A203: WY | B203: Wyoming

Sheet Applications (hidden)
A1: CHP Spark Spread Applications
A2: CHP Screening Tool
B4: Industry Description | C4: P/H Ratio | D4: Load, hr/yr
B5: 20 - Food and Kindred Products | C5: 0.547 | D5: 7500
B6: 21 - Tobacco Products | C6: 1.85 | D6: 7500
B7: 22 - Textiles | C7: 1.054 | D7: 7500
B8: 24 - Lumber and Wood | C8: 0.488 | D8: 7500
B9: 25 - Furniture | C9: 4.437 | D9: 7500
B10: 26 - Paper | C10: 0.293 | D10: 7500
B11: 27 - Printing | C11: 11.165 | D11: 7500
B12: 28 - Chemicals | C12: 0.659 | D12: 7500
B13: 29 - Petroleum Refining | C13: 0.261 | D13: 7500
B14: 30 - Rubber/Misc Plastics | C14: 3.079 | D14: 7500
B15: 32 - Stone/Clay/Glass | C15: 8.726 | D15: 7500
B16: 33 - Primary Metals | C16: 4.69 | D16: 7500
B17: 34 - Fabricated Metals | C17: 5.026 | D17: 7500
B18: 35 - Machinery/Computer Equip | C18: 6.846 | D18: 7500
B19: 37 - Trasportation Equip. | C19: 2 | D19: 7500
B20: 38 - Instruments | C20: 7.842 | D20: 7500
B21: 39 - Misc. Manufacturing | C21: 10.318 | D21: 7500
B22: 4222 - Warehouses | C22: 0.68 | D22: 8760
B23: 4300 - Post Offices | C23: 1.259259259 | D23: 4500
B24: 4581 - Airports | C24: 1.096774194 | D24: 8760
B25: 4952 - Water Treatment/Sanitary | C25: 1.36 | D25: 8760
B26: 5200 - Big Box Retail | C26: 1.837837838 | D26: 4500
B27: 5411 - Food Sales | C27: 3.4 | D27: 8760
B28: 5812 - Restaurants | C28: 1.416666667 | D28: 4500
B29: 6512 - Office Buildings | C29: 1.096774194 | D29: 4500
B30: 6513 - Apartments | C30: 0.8095238095 | D30: 8760
B31: 7011 - Hotels | C31: 0.8095238095 | D31: 8760
B32: 7211 - Laundries | C32: 0.68 | D32: 4500
B33: 7542 - Carwashes | C33: 0.68 | D33: 4500
B34: 7832 - Movie Theaters | C34: 1.837837838 | D34: 4500
B35: 7991 - Health Clubs | C35: 0.85 | D35: 4500
B36: 7997 - Golf/Country Clubs | C36: 0.85 | D36: 4500
B37: 8051 - Nursing Homes | C37: 0.8095238095 | D37: 8760
B38: 8062 - Hospitals | C38: 0.7234042553 | D38: 8760
B39: 8211 - Schools | C39: 1.096774194 | D39: 4500
B40: 8221 - Colleges/Universities | C40: 0.7727272727 | D40: 8760
B41: 8412 - Museums | C41: 1.096774194 | D41: 4500
B42: 9223 - Prisons | C42: 1.511111111 | D42: 8760
B43: N.C. - Data Centers | C43: 0.68 | D43: 8760
